[Event "53rd Women Tournament 2022"]
[Site "Belgrade"]
[Date "2022.04.04"]
[Round "8.5"]
[White "Manakova, Maria"]
[Black "Navrotescu, Andreea"]
[Result "1-0"]
[ECO "C11"]
[WhiteElo "2257"]
[BlackElo "2229"]
[Annotator "NA RC"]
[PlyCount "71"]
[EventDate "2022.03.28"]
[EventType "tourn"]
[EventCountry "SRB"]
[SourceTitle "playchess.com"]
[Source "ChessBase"]
[SourceQuality "1"]
[TimeControl "40/5400+30:1800+30"]

1. e4 {[%emt 0:03:34]} e6 {[%emt 0:00:05]} 2. d4 {[%emt 0:00:08]} d5 {[%emt 0:00:06]} 3. Nc3 {[%emt 0:00:22]} Nf6 {[%emt 0:00:14]} 4. e5 {[%emt 0:00:09]} Nfd7 {[%emt 0:00:06]} 5. f4 {[%emt 0:00:09]} c5 {[%emt 0:00:10]} 6. Nf3 {[%emt 0:00:05]} Nc6 {[%emt 0:00:09]} 7. Be3 {[%emt 0:00:10]} Be7 {[%emt 0:00:08]} 8. Qd2 {[%emt 0:00:16]} O-O {[%emt 0:00:34]} 9. O-O-O {[%emt 0:01:07]} c4 {[%emt 0:00:44]} 10. f5 {[%emt 0:01:33]} b5 {[%emt 0:01:16]} 11. f6 {[%emt 0:01:27]} gxf6 {[%emt 0:00:14]} 12. exf6 {[%emt 0:00:38]} Nxf6 {[%emt 0:02:11]} 13. Bh6 {[%emt 0:02:58]} Kh8 {[%emt 0:00:17]} 14. Bxf8 {[%emt 0:01:05]} Qxf8 {[%emt 0:00:56]} 15. Ne5 {[%emt 0:11:50]} Bd7 {[%emt 0:06:27]} 16. Nxd7 {[%emt 0:05:45]} Nxd7 {[%emt 0:00:10]} 17. Kb1 {[%emt 0:04:01]} b4 {[%emt 0:04:52]} 18. Ne2 {[%emt 0:10:09]} c3 {[%emt 0:04:57]} 19. Qf4 {[%emt 0:00:53]} Nb6 {[%emt 0:05:26]} 20. Ng3 {[%emt 0:01:29]} cxb2 {[%emt 0:21:53]} 21. Ba6 {[%emt 0:03:47]} Na4 {[%emt 0:00:46]} 22. Ne2 {[%emt 0:00:34]} Rb8 {[%emt 0:06:49]} 23. Rhf1 {[%emt 0:00:39]} f6 {[%emt 0:07:51]} 24. Rf3 {[%emt 0:06:57]} Na5 {[%emt 0:02:51]} 25. Rh3 {[%emt 0:01:52]} Nc4 {[%emt 0:11:09]} 26. Bxc4 {[%emt 0:00:30]} dxc4 {[%emt 0:00:02]} 27. Qe4 {[%emt 0:00:37]} Qf7 {[%emt 0:03:14]} 28. d5 {[%emt 0:07:53]} exd5 {[%emt 0:01:39]} 29. Rxd5 {[%emt 0:00:20]} Rd8 {[%emt 0:00:05]} 30. Rxd8+ {[%emt 0:03:31]} Bxd8 {[%emt 0:00:01]} 31. Re3 {[%emt 0:00:39]} Kg7 {[%emt 0:02:08]} 32. Qc6 {[%emt 0:19:43]} Nb6 {[%emt 0:00:15]} 33. Nd4 {[%emt 0:00:24]} c3 {[%emt 0:07:31]} 34. Nf5+ {[%emt 0:05:58]} Kg6 {[%emt 0:01:53]} 35. Qe4 {[%emt 0:00:09]} Qc4 {[%emt 0:02:51]} 36. Rg3+ {[%emt 0:00:26]} 1-0

[Event "53rd Women Tournament 2022"]
[Site "Belgrade"]
[Date "2022.04.05"]
[Round "9.1"]
[White "Navrotescu, Andreea"]
[Black "Chelushkina, Irina"]
[Result "1/2-1/2"]
[ECO "A41"]
[WhiteElo "2229"]
[BlackElo "2183"]
[Annotator "TA"]
[PlyCount "97"]
[EventDate "2022.03.28"]
[EventType "tourn"]
[EventCountry "SRB"]
[SourceTitle "playchess.com"]
[Source "ChessBase"]
[SourceQuality "1"]
[TimeControl "40/5400+30:1800+30"]

{[%evp 43,97,0,0,0,21,20,17,0,0,0,0,0,0,0,0,0,0,0,0,0,25,0,0,0,0,0,0,0,0,0,0,0,0,0,0,0,0,0,0,0,0,0,0,0,0,0,0,0,0,-8,0,0,0,0,0,0]} 1. c4 {[%emt 0:00:03]} g6 {[%emt 0:01:14]} 2. Nc3 {[%emt 0:00:07]} Bg7 {[%emt 0:00:00]} 3. d4 {[%emt 0:00:20]} d6 {[%emt 0:02:13]} 4. Nf3 {[%emt 0:01:35]} Nd7 {[%emt 0:00:36]} 5. g3 {[%emt 0:00:16]} e6 {[%emt 0:01:34]} 6. Bg2 {[%emt 0:00:12]} Ne7 {[%emt 0:00:05]} 7. e4 {[%emt 0:00:53]} O-O {[%emt 1:28:18]} 8. O-O {[%emt 0:00:10]} a6 {[%emt 0:00:00]} 9. a4 {[%emt 0:02:09]} a5 {[%emt 0:00:00]} 10. Bg5 {[%emt 0:00:40]} h6 {[%emt 0:00:00]} 11. Be3 {[%emt 0:00:12]} Kh7 {[%emt 0:00:00]} 12. Qc2 {[%emt 0:02:29]} Nc6 {[%emt 0:00:00]} 13. Rad1 {[%emt 0:00:37]} Nb4 {[%emt 0:00:00]} 14. Qb1 {[%emt 0:00:40]} Nb6 {[%emt 0:00:00]} 15. b3 {[%emt 0:00:32]} Bd7 {[%emt 0:00:00]} 16. h4 {[%emt 0:04:57]} d5 {[%emt 0:00:00]} 17. c5 {[%emt 0:04:12]} dxe4 {[%emt 0:00:00]} 18. cxb6 {[%emt 0:07:51]} exf3 {[%emt 0:00:00]} 19. Bxf3 {[%emt 0:00:03]} Bc6 {[%emt 0:00:00]} 20. Bxc6 {[%emt 0:03:49]} bxc6 {[%emt 0:00:00]} 21. bxc7 {[%emt 0:06:05]} Qxc7 {[%emt 0:00:00]} 22. Bf4 {[%emt 0:04:20]} Qe7 {[%emt 0:00:00]} 23. h5 {[%emt 0:18:49]} Qf6 {[%emt 0:00:00]} 24. Bd6 {[%emt 0:10:51]} Rfd8 {[%emt 0:00:00]} 25. hxg6+ {[%emt 0:00:42]} (25. Bxb4 {feels hotter.} axb4 26. Ne2 Rd6 27. Kg2) 25... Qxg6 {[%emt 0:00:00]} 26. Qxg6+ {[%emt 0:06:57]} Kxg6 {[%emt 0:00:00]} 27. Bxb4 {[%emt 0:00:11]} axb4 {[%emt 0:00:00]} 28. Ne2 {[%emt 0:00:41]} Rd6 {[%emt 0:00:00]} 29. Rc1 {[%emt 0:04:23]} Bxd4 {[%emt 0:00:00]} 30. Nxd4 {[%emt 0:00:01]} Rxd4 {[%emt 0:00:00]} 31. Rxc6 {[%emt 0:00:10]} Ra5 {[%emt 0:00:00]} 32. Rb6 {[%emt 0:00:54]} Rf5 {[%emt 0:00:00]} 33. Rc1 {[%emt 0:02:15]} h5 {[%emt 0:00:00]} 34. Rc2 {[%emt 0:01:55]} Rf3 {[%emt 0:00:00]} 35. Rb2 {[%emt 0:00:01]} Rc3 {[%emt 0:00:00]} 36. Kg2 {[%emt 0:00:42]} h4 {[%emt 0:00:00]} 37. gxh4 {[%emt 0:00:21]} Rxh4 {[%emt 0:00:00]} 38. a5 {[%emt 0:00:40]} Rg4+ {[%emt 0:00:00]} 39. Kf1 {[%emt 0:00:06]} Rc1+ {[%emt 0:00:00]} 40. Ke2 {[%emt 0:00:02]} Ra1 {[%emt 0:00:00]} 41. a6 {[%emt 0:34:25]} Re4+ {[%emt 0:12:52]} 42. Kf3 {[%emt 0:01:53]} Rh4 {[%emt 0:00:44]} 43. Ke3 {[%emt 0:01:15]} Kf5 {[%emt 0:01:42]} 44. Rb7 {[%emt 0:01:58]} f6 {[%emt 0:02:45]} 45. a7 {[%emt 0:00:03]} e5 {[%emt 0:00:04]} 46. Rd2 {[%emt 0:02:47]} Re4+ {[%emt 0:02:00]} 47. Kf3 {[%emt 0:01:16]} Rf4+ {[%emt 0:00:41]} 48. Ke2 {[%emt 0:00:20]} Re4+ {[%emt 0:00:12]} 49. Kf3 {[%emt 0:00:05]} 1/2-1/2

[Event "53rd Women Tournament 2022"]
[Site "Belgrade"]
[Date "2022.04.05"]
[Round "9.3"]
[White "Srdanovic, Jovana"]
[Black "Lu, Miaoyi"]
[Result "0-1"]
[ECO "D02"]
[WhiteElo "2194"]
[BlackElo "2182"]
[Annotator "TA"]
[PlyCount "64"]
[EventDate "2022.03.28"]
[EventType "tourn"]
[EventCountry "SRB"]
[SourceTitle "playchess.com"]
[Source "ChessBase"]
[SourceQuality "1"]
[TimeControl "40/5400+30:1800+30"]

{[%evp 18,64,21,17,29,7,11,5,15,4,4,8,10,-13,0,0,0,0,0,0,7,0,-6,-43,-47,-61,-63,-108,0,0,0,-110,-111,-203,-210,-210,-205,-199,-189,-461,-455,-426,-422,-1074,-1074,-1047,-1042,-29982,-29983]} 1. d4 {[%emt 0:00:03]} d5 {[%emt 0:00:04]} 2. Bf4 {[%emt 0:00:23]} Nf6 {[%emt 0:00:04]} 3. e3 {[%emt 0:00:19]} e6 {[%emt 0:00:33]} 4. Nd2 {[%emt 0:01:48]} Bd6 {[%emt 0:00:05]} 5. Bg3 {[%emt 0:00:09]} O-O {[%emt 0:00:05]} 6. Ngf3 {[%emt 0:00:44]} b6 {[%emt 0:03:40]} 7. Ne5 {[%emt 0:05:48]} Ba6 {[%emt 1:29:29]} 8. Bxa6 {[%emt 0:09:22]} Nxa6 {[%emt 0:00:00]} 9. Bh4 {[%emt 1:16:24]} Qe8 {[%emt 0:00:00]} 10. O-O {[%emt 0:00:00]} Nd7 {[%emt 0:00:00]} 11. Nxd7 {[%emt 0:00:00]} Qxd7 {[%emt 0:00:00]} 12. Qe2 {[%emt 0:00:00]} Nb8 {[%emt 0:00:00]} 13. e4 {[%emt 0:00:00]} c5 {[%emt 0:00:00]} 14. dxc5 {[%emt 0:00:00]} bxc5 {[%emt 0:00:00]} 15. Qg4 {[%emt 0:03:00]} f5 {[%emt 0:00:00]} 16. exf5 {[%emt 0:00:00]} Rxf5 {[%emt 0:00:00]} 17. Bg3 {[%emt 0:00:00]} Nc6 {[%emt 0:00:00]} 18. c3 {[%emt 0:00:00]} Raf8 {[%emt 0:05:30]} 19. Bxd6 {[%emt 0:00:00]} Qxd6 {[%emt 0:00:00]} 20. Rad1 {[%emt 0:02:30]} Ne5 {[%emt 0:00:00]} 21. Qg3 {[%emt 0:00:00]} Qb6 {[%emt 0:00:00]} 22. Nb3 {[%emt 0:01:00]} Nc4 {[%emt 0:02:00]} (22... R8f6 $17 {Strongly threatening ...Rg6.} 23. Qh4 Qd6) 23. Nd2 $1 $11 {[%emt 0:00:30]} Ne5 {[%emt 0:00:00]} (23... Nxb2 $11 24. Rb1 R5f6) 24. Nb3 $1 $17 {[%emt 0:00:00]} a5 {[%emt 0:01:00]} 25. Qe3 {[%emt 0:00:00]} (25. Nd2 $17 {was worth a try.}) 25... Ng4 $19 {[%emt 0:00:30]} 26. Qxc5 {[%emt 0:00:00]} Qb8 {[%emt 0:00:30]} 27. g3 {[%emt 0:00:03] [#]} Nxf2 $1 {[%emt 0:00:30]} 28. Rb1 $2 {[%emt 0:00:40]} (28. Nd4 {was the only chance.} R5f6 {[#]} 29. Rxf2 $1 Rxf2 30. Nxe6) 28... Qe5 {[%emt 0:00:30]} 29. Rbe1 {[%emt 0:01:41]} Qf6 {[%emt 0:00:00]} 30. Qe3 {[%emt 0:00:23]} (30. Qd4 $142 Nh3+ 31. Kg2 Rxf1 32. Qxf6 R1xf6 33. Kxh3) 30... Nh3+ $19 {[%emt 0:00:00]} 31. Kg2 {[%emt 0:00:04]} Rxf1 {[%emt 0:00:00]} 32. Kxh3 {[%emt 0:00:04]} Qf5+ {[%emt 0:00:00]} 0-1

[Event "53rd Women Tournament 2022"]
[Site "Belgrade"]
[Date "2022.04.05"]
[Round "9.4"]
[White "Xu, Yuanyuan"]
[Black "Grozdanovic, Anastasia"]
[Result "1-0"]
[ECO "D32"]
[WhiteElo "2317"]
[BlackElo "2005"]
[Annotator "RC"]
[PlyCount "65"]
[EventDate "2022.03.28"]
[EventType "tourn"]
[EventCountry "SRB"]
[SourceTitle "playchess.com"]
[Source "ChessBase"]
[SourceQuality "1"]
[TimeControl "40/5400+30:1800+30"]

1. d4 {[%emt 0:00:02]} d5 {[%emt 0:00:05]} 2. c4 {[%emt 0:00:07]} e6 {[%emt 0:01:00]} 3. Nc3 {[%emt 0:03:19]} c5 {[%emt 0:00:57]} 4. cxd5 {[%emt 0:06:48]} exd5 {[%emt 0:00:06]} 5. Nf3 {[%emt 0:00:10]} Nc6 {[%emt 0:01:25]} 6. Bg5 {[%emt 0:00:17]} Be7 {[%emt 0:01:05]} 7. Bxe7 {[%emt 0:02:08]} Ngxe7 {[%emt 0:00:05]} 8. dxc5 {[%emt 0:02:29]} O-O {[%emt 0:04:02]} 9. e3 {[%emt 0:07:16]} Bg4 {[%emt 0:03:44]} 10. Be2 {[%emt 0:03:09]} Qa5 {[%emt 0:00:51]} 11. Qa4 {[%emt 0:01:39]} Qxa4 {[%emt 0:03:39]} 12. Nxa4 {[%emt 0:00:02]} Rfd8 {[%emt 0:10:46]} 13. O-O {[%emt 0:02:24]} Bxf3 {[%emt 0:03:00]} 14. Bxf3 {[%emt 0:00:11]} d4 {[%emt 0:00:05]} 15. exd4 {[%emt 0:08:37]} Rxd4 {[%emt 0:00:06]} 16. b3 {[%emt 0:01:27]} Kf8 {[%emt 0:02:32]} 17. Rfd1 {[%emt 0:01:22]} Rb4 {[%emt 0:00:44]} 18. g3 {[%emt 0:05:07]} Rc8 {[%emt 0:04:40]} 19. Bg2 {[%emt 0:01:48]} Nd8 {[%emt 0:07:05]} 20. Rd7 {[%emt 0:02:50]} Rb8 {[%emt 0:09:26]} 21. Rad1 {[%emt 0:03:38]} Ne6 {[%emt 0:01:46]} 22. Nc3 {[%emt 0:06:14]} Ke8 {[%emt 0:03:02]} 23. Rxe7+ {[%emt 0:00:32]} Kxe7 {[%emt 0:00:11]} 24. Nd5+ {[%emt 0:00:04]} Ke8 {[%emt 0:00:51]} 25. Nxb4 {[%emt 0:00:08]} Nxc5 {[%emt 0:00:10]} 26. Nd3 {[%emt 0:02:48]} Ne6 {[%emt 0:00:50]} 27. Ne5 {[%emt 0:00:20]} f6 {[%emt 0:00:46]} 28. Nc4 {[%emt 0:02:05]} Ke7 {[%emt 0:00:15]} 29. Re1 {[%emt 0:00:36]} b5 {[%emt 0:00:26]} 30. Bd5 {[%emt 0:01:36]} bxc4 {[%emt 0:00:30]} 31. Rxe6+ {[%emt 0:00:08]} Kd7 {[%emt 0:00:10]} 32. Bxc4 {[%emt 0:00:10]} Rb4 {[%emt 0:00:11]} 33. Ra6 {[%emt 0:00:22]} 1-0